[Event "Live Chess"]
[Site "Chess.com"]
[Date "2023.05.20"]
[Round "-"]
[White "bedsdrout"]
[Black "Vedant-1411"]
[Result "0-1"]
[WhiteElo "434"]
[BlackElo "884"]
[TimeControl "300"]
[EndTime "9:50:58 PDT"]
[Termination "Vedant-1411 won by checkmate"]

1. e3 {[%clk 0:04:54.6]} 1... d5 {[%clk 0:04:57.2]} 2. Nf3 {[%clk 0:04:43.5]}
2... Nc6 {[%clk 0:04:50.3]} 3. c3 {[%clk 0:04:38.5]} 3... Nf6 {[%clk 0:04:46]}
4. Ng5 {[%clk 0:04:31.3]} 4... Be6 {[%clk 0:04:43.1]} 5. e4 {[%clk 0:04:26.6]}
5... dxe4 {[%clk 0:04:41.1]} 6. d4 {[%clk 0:04:22.8]} 6... h6 {[%clk 0:04:32.1]}
7. Qe2 {[%clk 0:04:07]} 7... hxg5 {[%clk 0:04:29.7]} 8. Qe3 {[%clk 0:03:58]}
8... Ng4 {[%clk 0:04:26.6]} 9. Qxe4 {[%clk 0:03:52.8]} 9... Nf6 {[%clk
0:04:25.1]} 10. Qf3 {[%clk 0:03:48.4]} 10... Bg4 {[%clk 0:04:21.8]} 11. Qg3
{[%clk 0:03:42.9]} 11... Qd6 {[%clk 0:03:57.2]} 12. Bf4 {[%clk 0:03:34.8]} 12...
Qe6+ {[%clk 0:03:54.9]} 13. Be3 {[%clk 0:03:14.3]} 13... Ne4 {[%clk 0:03:42.6]}
14. Qxc7 {[%clk 0:03:06.4]} 14... Qc8 {[%clk 0:03:18.7]} 15. Qe5 {[%clk
0:02:58.4]} 15... Nxe5 {[%clk 0:03:13.8]} 16. dxe5 {[%clk 0:02:56.1]} 16... Qd8
{[%clk 0:03:10.2]} 17. f3 {[%clk 0:02:51.1]} 17... Bf5 {[%clk 0:03:06.2]} 18.
fxe4 {[%clk 0:02:48.7]} 18... Bxe4 {[%clk 0:03:04.8]} 19. Bb5+ {[%clk
0:02:42.9]} 19... Bc6 {[%clk 0:03:02]} 20. Na3 {[%clk 0:02:37.6]} 20... Bxb5
{[%clk 0:03:00.6]} 21. Nxb5 {[%clk 0:02:35.5]} 21... a6 {[%clk 0:02:52.8]} 22.
Rd1 {[%clk 0:02:28.8]} 22... Qxd1+ {[%clk 0:02:46.4]} 23. Kxd1 {[%clk
0:02:25.2]} 23... axb5 {[%clk 0:02:38.9]} 24. Kc1 {[%clk 0:02:13.5]} 24... Rxa2
{[%clk 0:02:35.1]} 25. Bb6 {[%clk 0:02:07.4]} 25... Ra1+ {[%clk 0:02:33.2]} 26.
Kd2 {[%clk 0:01:57.1]} 26... Rxh1 {[%clk 0:02:27.9]} 27. b3 {[%clk 0:01:50.6]}
27... R1xh2 {[%clk 0:02:24]} 28. c4 {[%clk 0:01:49.4]} 28... Rxg2+ {[%clk
0:02:22]} 29. Kd3 {[%clk 0:01:47.7]} 29... bxc4+ {[%clk 0:02:19.1]} 30. bxc4
{[%clk 0:01:45]} 30... Rh3+ {[%clk 0:02:17.7]} 31. Kd4 {[%clk 0:01:42.9]} 31...
Rg4+ {[%clk 0:02:15.9]} 32. Kd5 {[%clk 0:01:41.2]} 32... e6# {[%clk 0:02:13.4]}
0-1

[Event "Live Chess"]
[Site "Chess.com"]
[Date "2023.05.20"]
[Round "-"]
[White "defenderalist"]
[Black "Jio85"]
[Result "0-1"]
[WhiteElo "1591"]
[BlackElo "2025"]
[TimeControl "300"]
[EndTime "9:50:58 PDT"]
[Termination "Jio85 won by resignation"]

1. e4 {[%clk 0:04:51.1]} 1... Nf6 {[%clk 0:04:47.8]} 2. Nc3 {[%clk 0:04:49.7]}
2... d5 {[%clk 0:04:46.4]} 3. exd5 {[%clk 0:04:48.7]} 3... Nxd5 {[%clk
0:04:45.6]} 4. Nxd5 {[%clk 0:04:48.3]} 4... Qxd5 {[%clk 0:04:45]} 5. Nf3 {[%clk
0:04:47.6]} 5... Bg4 {[%clk 0:04:44]} 6. Be2 {[%clk 0:04:44.8]} 6... Nc6 {[%clk
0:04:39.7]} 7. O-O {[%clk 0:04:43.6]} 7... O-O-O {[%clk 0:04:38.4]} 8. h3 {[%clk
0:04:43.2]} 8... h5 {[%clk 0:04:34]} 9. d4 {[%clk 0:04:39.5]} 9... e6 {[%clk
0:04:29.2]} 10. c3 {[%clk 0:04:37.9]} 10... Bd6 {[%clk 0:04:27.4]} 11. Ne5
{[%clk 0:04:36]} 11... Bxe5 {[%clk 0:04:23.6]} 12. hxg4 {[%clk 0:04:18.1]} 12...
hxg4 {[%clk 0:04:15.5]} 13. dxe5 {[%clk 0:04:09.2]} 13... Qxe5 {[%clk
0:04:10.9]} 14. g3 {[%clk 0:04:05.9]} 14... Rxd1 {[%clk 0:04:08.4]} 0-1

[Event "Live Chess"]
[Site "Chess.com"]
[Date "2023.05.20"]
[Round "-"]
[White "zdanevych"]
[Black "mach247"]
[Result "1-0"]
[WhiteElo "1530"]
[BlackElo "1331"]
[TimeControl "300"]
[EndTime "9:51:08 PDT"]
[Termination "zdanevych won by checkmate"]

1. d4 {[%clk 0:04:59]} 1... Nf6 {[%clk 0:04:58.7]} 2. c4 {[%clk 0:04:58]} 2...
e6 {[%clk 0:04:58.2]} 3. Nc3 {[%clk 0:04:56.6]} 3... d5 {[%clk 0:04:57.7]} 4.
cxd5 {[%clk 0:04:55.6]} 4... Nxd5 {[%clk 0:04:57.1]} 5. e4 {[%clk 0:04:55.2]}
5... Nxc3 {[%clk 0:04:56.4]} 6. bxc3 {[%clk 0:04:55.1]} 6... Be7 {[%clk
0:04:46.7]} 7. Nf3 {[%clk 0:04:53.7]} 7... O-O {[%clk 0:04:46.1]} 8. e5 {[%clk
0:04:52.9]} 8... Nd7 {[%clk 0:04:41.1]} 9. Bd3 {[%clk 0:04:51.8]} 9... Re8
{[%clk 0:04:32.1]} 10. O-O {[%clk 0:04:48.9]} 10... Nb6 {[%clk 0:04:30.6]} 11.
Be3 {[%clk 0:04:45.9]} 11... Nd5 {[%clk 0:04:29.6]} 12. Bd2 {[%clk 0:04:37.2]}
12... c5 {[%clk 0:04:27]} 13. c4 {[%clk 0:04:31.7]} 13... Nb4 {[%clk 0:03:56.4]}
14. Bxb4 {[%clk 0:04:20.8]} 14... cxb4 {[%clk 0:03:56.3]} 15. d5 {[%clk
0:04:15]} 15... exd5 {[%clk 0:03:43.3]} 16. cxd5 {[%clk 0:04:14.9]} 16... g6
{[%clk 0:03:42.5]} 17. d6 {[%clk 0:04:02.1]} 17... Bf8 {[%clk 0:03:41.6]} 18.
Re1 {[%clk 0:03:26.5]} 18... Be6 {[%clk 0:03:39.3]} 19. Bb5 {[%clk 0:03:03.1]}
19... Bd7 {[%clk 0:03:36.8]} 20. Bxd7 {[%clk 0:03:00.2]} 20... Qxd7 {[%clk
0:03:36.6]} 21. h3 {[%clk 0:02:49.2]} 21... Bg7 {[%clk 0:03:33.7]} 22. Rb1
{[%clk 0:02:45.2]} 22... a5 {[%clk 0:03:31.9]} 23. Rb2 {[%clk 0:02:34.5]} 23...
Rac8 {[%clk 0:03:14.7]} 24. Rc2 {[%clk 0:02:31.8]} 24... Rxc2 {[%clk 0:03:10.3]}
25. Qxc2 {[%clk 0:02:31.7]} 25... Rc8 {[%clk 0:03:09.8]} 26. Qe4 {[%clk
0:02:21.1]} 26... b5 {[%clk 0:02:45.7]} 27. Ng5 {[%clk 0:02:04.7]} 27... Rc4
{[%clk 0:02:37.8]} 28. Qd5 {[%clk 0:01:57.3]} 28... h6 {[%clk 0:02:27.6]} 29.
Ne4 {[%clk 0:01:52.3]} 29... a4 {[%clk 0:00:58.1]} 30. Nf6+ {[%clk 0:01:48.5]}
30... Bxf6 {[%clk 0:00:56.3]} 31. exf6 {[%clk 0:01:48.4]} 31... b3 {[%clk
0:00:43.5]} 32. Re7 {[%clk 0:01:47.1]} 32... Rc1+ {[%clk 0:00:36.1]} 33. Kh2
{[%clk 0:01:45.4]} 33... Qf5 {[%clk 0:00:11]} 34. Qxf7+ {[%clk 0:01:42.6]} 34...
Kh8 {[%clk 0:00:10.7]} 35. Qg7# {[%clk 0:01:42.4]} 1-0

[Event "Live Chess"]
[Site "Chess.com"]
[Date "2023.05.20"]
[Round "-"]
[White "ramses-IIG"]
[Black "lateforthesky"]
[Result "0-1"]
[WhiteElo "744"]
[BlackElo "2077"]
[TimeControl "300"]
[EndTime "9:51:10 PDT"]
[Termination "lateforthesky won by checkmate"]

1. e4 {[%clk 0:04:56.9]} 1... c5 {[%clk 0:04:58.3]} 2. Nf3 {[%clk 0:04:56.8]}
2... Nf6 {[%clk 0:04:56.6]} 3. d3 {[%clk 0:04:50.4]} 3... d6 {[%clk 0:04:53]} 4.
Nc3 {[%clk 0:04:48]} 4... g6 {[%clk 0:04:50.7]} 5. d4 {[%clk 0:04:47.1]} 5...
cxd4 {[%clk 0:04:48.4]} 6. Qxd4 {[%clk 0:04:47]} 6... Bg7 {[%clk 0:04:46.4]} 7.
Qa4+ {[%clk 0:04:43.7]} 7... Nc6 {[%clk 0:04:42.2]} 8. Qb5 {[%clk 0:04:35.7]}
8... O-O {[%clk 0:04:39.3]} 9. Bg5 {[%clk 0:04:21.7]} 9... a6 {[%clk 0:04:25.7]}
10. Qd3 {[%clk 0:04:14.5]} 10... h6 {[%clk 0:04:20.4]} 11. Bf4 {[%clk
0:04:11.1]} 11... e5 {[%clk 0:03:54.1]} 12. Be3 {[%clk 0:04:04.5]} 12... Ng4
{[%clk 0:03:51.1]} 13. Qd2 {[%clk 0:03:40.2]} 13... Nxe3 {[%clk 0:03:48.9]} 14.
Qxe3 {[%clk 0:03:40.1]} 14... Be6 {[%clk 0:03:46.4]} 15. Ne2 {[%clk 0:03:23.1]}
15... Rc8 {[%clk 0:03:38.3]} 16. c3 {[%clk 0:03:18.3]} 16... Na5 {[%clk
0:03:17.8]} 17. b3 {[%clk 0:03:03.2]} 17... b5 {[%clk 0:03:01.9]} 18. Ng3 {[%clk
0:02:56.4]} 18... Qc7 {[%clk 0:02:57.5]} 19. Rc1 {[%clk 0:02:37.5]} 19... d5
{[%clk 0:02:56.2]} 20. Be2 {[%clk 0:02:31.4]} 20... d4 {[%clk 0:02:51.9]} 21.
Qd3 {[%clk 0:02:01.7]} 21... dxc3 {[%clk 0:02:48.5]} 22. h4 {[%clk 0:01:50]}
22... Rfd8 {[%clk 0:02:46.1]} 23. Qc2 {[%clk 0:01:46.5]} 23... Bg4 {[%clk
0:02:15.7]} 24. h5 {[%clk 0:01:37.1]} 24... Bxf3 {[%clk 0:02:13.7]} 25. Bxf3
{[%clk 0:01:30.2]} 25... Rd2 {[%clk 0:02:12.5]} 26. Qb1 {[%clk 0:01:17.1]} 26...
Qd6 {[%clk 0:02:03.2]} 27. Qa1 {[%clk 0:00:59.1]} 27... b4 {[%clk 0:01:48.9]}
28. hxg6 {[%clk 0:00:55.3]} 28... fxg6 {[%clk 0:01:47.5]} 29. Bg4 {[%clk
0:00:47.1]} 29... Rf8 {[%clk 0:01:44.2]} 30. Nf1 {[%clk 0:00:39.7]} 30... Rdxf2
{[%clk 0:01:41]} 31. Ne3 {[%clk 0:00:34.6]} 31... Qd2# {[%clk 0:01:34.7]} 0-1

[Event "Live Chess"]
[Site "Chess.com"]
[Date "2023.05.20"]
[Round "-"]
[White "xx_blindpuffin_xx"]
[Black "hello505050"]
[Result "1-0"]
[WhiteElo "2188"]
[BlackElo "1075"]
[TimeControl "300"]
[EndTime "9:51:14 PDT"]
[Termination "xx_blindpuffin_xx won by checkmate"]

1. d4 {[%clk 0:04:58.3]} 1... d5 {[%clk 0:04:58.3]} 2. Bf4 {[%clk 0:04:57.2]}
2... Nc6 {[%clk 0:04:56.8]} 3. e3 {[%clk 0:04:56.7]} 3... Bf5 {[%clk 0:04:55.2]}
4. c4 {[%clk 0:04:55.6]} 4... Nb4 {[%clk 0:04:48.6]} 5. Qa4+ {[%clk 0:04:53.4]}
5... Nc6 {[%clk 0:04:46.8]} 6. cxd5 {[%clk 0:04:51.1]} 6... e6 {[%clk
0:04:40.3]} 7. dxc6 {[%clk 0:04:49.1]} 7... bxc6 {[%clk 0:04:38.8]} 8. Qxc6+
{[%clk 0:04:47.2]} 8... Ke7 {[%clk 0:04:37.9]} 9. Nf3 {[%clk 0:04:41]} 9... Qb8
{[%clk 0:04:27.8]} 10. Bb5 {[%clk 0:04:27.9]} 10... Nf6 {[%clk 0:04:16.9]} 11.
Bg5 {[%clk 0:04:26.6]} 11... Qd8 {[%clk 0:04:10.8]} 12. Ne5 {[%clk 0:04:13.2]}
12... a6 {[%clk 0:04:05]} 13. Qc5+ {[%clk 0:04:12.2]} 13... Qd6 {[%clk
0:04:00.8]} 14. Nc6+ {[%clk 0:04:11.2]} 14... Kd7 {[%clk 0:03:57.9]} 15. Ne5+
{[%clk 0:03:59]} 15... Ke7 {[%clk 0:03:52.5]} 16. Bc6 {[%clk 0:03:48.3]} 16...
Qxc5 {[%clk 0:03:43.3]} 17. dxc5 {[%clk 0:03:46.1]} 17... Rb8 {[%clk 0:03:41]}
18. b3 {[%clk 0:03:42.5]} 18... h6 {[%clk 0:03:36.3]} 19. Bh4 {[%clk 0:03:39.7]}
19... g5 {[%clk 0:03:35]} 20. Bg3 {[%clk 0:03:39]} 20... h5 {[%clk 0:03:33.5]}
21. Ba4 {[%clk 0:03:33]} 21... h4 {[%clk 0:03:30.2]} 22. Nc6+ {[%clk 0:03:30]}
22... Ke8 {[%clk 0:03:27.2]} 23. Nxb8+ {[%clk 0:03:25.1]} 23... Kd8 {[%clk
0:03:25.2]} 24. Be5 {[%clk 0:03:22.4]} 24... Bg7 {[%clk 0:03:20.2]} 25. Nc3
{[%clk 0:03:21.2]} 25... h3 {[%clk 0:03:15.5]} 26. O-O-O+ {[%clk 0:03:16.2]}
26... Kc8 {[%clk 0:03:12.5]} 27. Nxa6 {[%clk 0:03:06.6]} 27... Rd8 {[%clk
0:03:08.1]} 28. Rxd8+ {[%clk 0:03:02.4]} 28... Kxd8 {[%clk 0:03:08]} 29. Rd1+
{[%clk 0:03:01.5]} 29... Ke7 {[%clk 0:03:00.9]} 30. Bxc7 {[%clk 0:02:57.1]}
30... Ne4 {[%clk 0:02:57.1]} 31. Nxe4 {[%clk 0:02:54.8]} 31... Bxe4 {[%clk
0:02:57]} 32. Bd8+ {[%clk 0:02:49.3]} 32... Kf8 {[%clk 0:02:55.1]} 33. Bxg5
{[%clk 0:02:46.6]} 33... hxg2 {[%clk 0:02:52.3]} 34. Rd8# {[%clk 0:02:45.1]} 1-0

[Event "Live Chess"]
[Site "Chess.com"]
[Date "2023.05.20"]
[Round "-"]
[White "WelshTiger"]
[Black "ReeceHockton"]
[Result "1-0"]
[WhiteElo "2426"]
[BlackElo "321"]
[TimeControl "300"]
[EndTime "9:51:15 PDT"]
[Termination "WelshTiger won by checkmate"]

1. e4 {[%clk 0:04:58.6]} 1... e5 {[%clk 0:04:58.2]} 2. d4 {[%clk 0:04:54.3]}
2... Nc6 {[%clk 0:04:55.5]} 3. d5 {[%clk 0:04:52.4]} 3... Nd4 {[%clk 0:04:48.4]}
4. c3 {[%clk 0:04:51.6]} 4... f6 {[%clk 0:04:37.2]} 5. cxd4 {[%clk 0:04:50.7]}
5... exd4 {[%clk 0:04:36.1]} 6. Qxd4 {[%clk 0:04:48.3]} 6... d6 {[%clk
0:04:35.4]} 7. Nf3 {[%clk 0:04:44.6]} 7... b5 {[%clk 0:04:16.1]} 8. Bxb5+ {[%clk
0:04:43.2]} 8... Bd7 {[%clk 0:04:00.7]} 9. Nc3 {[%clk 0:04:41.1]} 9... Nh6
{[%clk 0:03:52.6]} 10. O-O {[%clk 0:04:38.8]} 10... g5 {[%clk 0:03:37.3]} 11.
Bxg5 {[%clk 0:04:35.4]} 11... fxg5 {[%clk 0:03:29.4]} 12. Qxh8 {[%clk
0:04:34.3]} 12... Nf7 {[%clk 0:03:25.6]} 13. Qxh7 {[%clk 0:04:32.7]} 13... g4
{[%clk 0:03:23.1]} 14. Nd4 {[%clk 0:04:29.8]} 14... Bxb5 {[%clk 0:03:19.7]} 15.
Ncxb5 {[%clk 0:04:28.8]} 15... Rb8 {[%clk 0:03:18.6]} 16. Ne6 {[%clk 0:04:24.7]}
16... Qd7 {[%clk 0:03:14.5]} 17. Nbxc7+ {[%clk 0:04:23.9]} 17... Qxc7 {[%clk
0:03:12.2]} 18. Nxc7+ {[%clk 0:04:22.7]} 18... Kd7 {[%clk 0:03:10.9]} 19. Qxf7+
{[%clk 0:04:21.2]} 19... Kd8 {[%clk 0:03:08.2]} 20. Ne6+ {[%clk 0:04:19.4]}
20... Kc8 {[%clk 0:03:04.4]} 21. Qc7# {[%clk 0:04:19.3]} 1-0

[Event "Live Chess"]
[Site "Chess.com"]
[Date "2023.05.20"]
[Round "-"]
[White "Brooms1989"]
[Black "olahgito"]
[Result "1-0"]
[WhiteElo "969"]
[BlackElo "730"]
[TimeControl "300"]
[EndTime "9:51:21 PDT"]
[Termination "Brooms1989 won by resignation"]

1. e4 {[%clk 0:04:58.4]} 1... d5 {[%clk 0:04:58.3]} 2. exd5 {[%clk 0:04:54.5]}
2... Qxd5 {[%clk 0:04:58.2]} 3. Nc3 {[%clk 0:04:52.9]} 3... Qd8 {[%clk
0:04:58.1]} 4. d4 {[%clk 0:04:51.1]} 4... Nf6 {[%clk 0:04:55.3]} 5. Nf3 {[%clk
0:04:49.6]} 5... Nc6 {[%clk 0:04:51.6]} 6. Bc4 {[%clk 0:04:46.7]} 6... Bg4
{[%clk 0:04:46.4]} 7. h3 {[%clk 0:04:41.3]} 7... Bxf3 {[%clk 0:04:45.4]} 8. Qxf3
{[%clk 0:04:37.3]} 8... Nxd4 {[%clk 0:04:44.6]} 9. Qd3 {[%clk 0:04:19.9]} 9...
e5 {[%clk 0:04:35.6]} 10. O-O {[%clk 0:04:13.6]} 10... Qd6 {[%clk 0:04:27.2]}
11. Re1 {[%clk 0:03:50.8]} 11... O-O-O {[%clk 0:04:20.2]} 12. Bxf7 {[%clk
0:03:39]} 12... Be7 {[%clk 0:04:14]} 13. Bg5 {[%clk 0:03:23.6]} 13... Rhf8
{[%clk 0:04:01.2]} 14. Bb3 {[%clk 0:03:08.5]} 14... h6 {[%clk 0:04:00.2]} 15.
Bxf6 {[%clk 0:03:06.9]} 15... Bxf6 {[%clk 0:03:58.6]} 16. a4 {[%clk 0:03:00.5]}
16... Nxb3 {[%clk 0:03:42.6]} 17. Qxd6 {[%clk 0:02:55.9]} 17... Rxd6 {[%clk
0:03:42.5]} 18. cxb3 {[%clk 0:02:54.7]} 18... Re8 {[%clk 0:03:20]} 19. b4 {[%clk
0:02:46.8]} 19... Rd2 {[%clk 0:03:15.5]} 20. Nd1 {[%clk 0:02:29.6]} 20... e4
{[%clk 0:03:08.2]} 21. a5 {[%clk 0:02:25.9]} 21... Bxb2 {[%clk 0:03:02.6]} 22.
Rb1 {[%clk 0:02:10.2]} 22... Bc3 {[%clk 0:02:53.9]} 23. Nxc3 {[%clk 0:02:00.2]}
23... Rd4 {[%clk 0:02:48.8]} 24. f3 {[%clk 0:01:50.6]} 24... Kd7 {[%clk
0:02:41]} 25. Rxe4 {[%clk 0:01:46.6]} 25... Rdxe4 {[%clk 0:02:37.2]} 26. Nxe4
{[%clk 0:01:45.1]} 26... b6 {[%clk 0:02:34.5]} 27. Rd1+ {[%clk 0:01:40.3]} 27...
Kc6 {[%clk 0:02:30.4]} 28. axb6 {[%clk 0:01:39.3]} 28... axb6 {[%clk 0:02:30.3]}
29. b5+ {[%clk 0:01:35.7]} 29... Kxb5 {[%clk 0:02:29.3]} 30. Re1 {[%clk
0:01:34.8]} 30... Kc4 {[%clk 0:02:21.5]} 31. Nd2+ {[%clk 0:01:28.8]} 31... Kc3
{[%clk 0:02:11.3]} 32. Rxe8 {[%clk 0:01:27.7]} 32... Kxd2 {[%clk 0:02:10.8]} 33.
Rc8 {[%clk 0:01:25.1]} 33... c5 {[%clk 0:02:09.8]} 34. Rc6 {[%clk 0:01:24.6]}
34... b5 {[%clk 0:01:56.8]} 35. Rxc5 {[%clk 0:01:22.4]} 35... b4 {[%clk
0:01:56.1]} 36. Rb5 {[%clk 0:01:21.4]} 36... Kc3 {[%clk 0:01:53.8]} 37. Kf2
{[%clk 0:01:21]} 37... b3 {[%clk 0:01:53]} 38. Ke3 {[%clk 0:01:20.2]} 38... b2
{[%clk 0:01:52.3]} 39. Ke4 {[%clk 0:01:19.2]} 39... Kc2 {[%clk 0:01:51.8]} 40.
Ke5 {[%clk 0:01:18.3]} 40... b1=Q {[%clk 0:01:51.2]} 41. Rxb1 {[%clk 0:01:17.9]}
41... Kxb1 {[%clk 0:01:51.1]} 42. Kf5 {[%clk 0:01:16.1]} 42... Kc2 {[%clk
0:01:50.7]} 43. Kg6 {[%clk 0:01:15.5]} 43... Kd2 {[%clk 0:01:50.3]} 44. Kxg7
{[%clk 0:01:14.5]} 44... Ke2 {[%clk 0:01:50.1]} 45. f4 {[%clk 0:01:13.9]} 45...
Kf2 {[%clk 0:01:49.8]} 46. f5 {[%clk 0:01:13.4]} 46... h5 {[%clk 0:01:47.6]} 47.
f6 {[%clk 0:01:12.6]} 47... Kxg2 {[%clk 0:01:47.1]} 48. f7 {[%clk 0:01:11.5]}
48... Kxh3 {[%clk 0:01:46.7]} 49. f8=Q {[%clk 0:01:10.6]} 49... Kg2 {[%clk
0:01:46.4]} 50. Qf5 {[%clk 0:01:07.8]} 50... h4 {[%clk 0:01:46.1]} 51. Qg4+
{[%clk 0:01:06.7]} 1-0

[Event "Live Chess"]
[Site "Chess.com"]
[Date "2023.05.20"]
[Round "-"]
[White "wot-not"]
[Black "alanmike75"]
[Result "1-0"]
[WhiteElo "1482"]
[BlackElo "1482"]
[TimeControl "300"]
[EndTime "9:51:24 PDT"]
[Termination "wot-not won by resignation"]

1. e4 {[%clk 0:04:56.6]} 1... e5 {[%clk 0:04:58.8]} 2. f4 {[%clk 0:04:54.9]}
2... exf4 {[%clk 0:04:57.6]} 3. Nf3 {[%clk 0:04:54]} 3... Nf6 {[%clk 0:04:56.6]}
4. e5 {[%clk 0:04:52.4]} 4... Nh5 {[%clk 0:04:55.4]} 5. d4 {[%clk 0:04:51.1]}
5... d5 {[%clk 0:04:54.5]} 6. Bd3 {[%clk 0:04:49.2]} 6... Be6 {[%clk 0:04:53.1]}
7. O-O {[%clk 0:04:48.2]} 7... Nd7 {[%clk 0:04:49.8]} 8. Nbd2 {[%clk 0:04:46.3]}
8... g5 {[%clk 0:04:48.2]} 9. Nb3 {[%clk 0:04:41.9]} 9... Ng7 {[%clk 0:04:44.1]}
10. Bd2 {[%clk 0:04:35.2]} 10... Be7 {[%clk 0:04:42.2]} 11. Be1 {[%clk
0:04:33.3]} 11... c6 {[%clk 0:04:41.1]} 12. c3 {[%clk 0:04:26.6]} 12... Qb6
{[%clk 0:04:36.1]} 13. Bf2 {[%clk 0:04:21.5]} 13... O-O-O {[%clk 0:04:33.8]} 14.
Qc2 {[%clk 0:04:19]} 14... h6 {[%clk 0:04:30]} 15. a4 {[%clk 0:04:17.9]} 15...
a5 {[%clk 0:04:22.6]} 16. Nbd2 {[%clk 0:04:05.4]} 16... g4 {[%clk 0:04:14.8]}
17. Ne1 {[%clk 0:03:59.4]} 17... h5 {[%clk 0:04:03.8]} 18. c4 {[%clk 0:03:49.5]}
18... g3 {[%clk 0:03:41.8]} 19. hxg3 {[%clk 0:03:47]} 19... fxg3 {[%clk
0:03:40.4]} 20. Bxg3 {[%clk 0:03:46.3]} 20... Qxd4+ {[%clk 0:03:38.6]} 21. Bf2
{[%clk 0:03:44.3]} 21... Qg4 {[%clk 0:03:28.5]} 22. cxd5 {[%clk 0:03:11.8]}
22... Bxd5 {[%clk 0:03:25.5]} 23. Be4 {[%clk 0:03:11.1]} 23... Qe6 {[%clk
0:03:07.9]} 24. Bxd5 {[%clk 0:03:08.7]} 24... Qxd5 {[%clk 0:03:06.5]} 25. Ndf3
{[%clk 0:03:00.6]} 25... Nxe5 {[%clk 0:02:55]} 26. Nxe5 {[%clk 0:02:59.2]} 26...
Qxe5 {[%clk 0:02:53.5]} 27. Nf3 {[%clk 0:02:48.6]} 27... Qf5 {[%clk 0:02:47.7]}
28. Qc3 {[%clk 0:02:36.3]} 28... Qf6 {[%clk 0:02:33.9]} 29. Qxa5 {[%clk
0:02:31.5]} 29... Nf5 {[%clk 0:02:12]} 30. Qa8+ {[%clk 0:02:26.1]} 30... Kc7
{[%clk 0:02:10.5]} 31. Bb6+ {[%clk 0:02:23.7]} 31... Kxb6 {[%clk 0:02:04.6]} 32.
a5+ {[%clk 0:02:20.8]} 32... Kc7 {[%clk 0:01:58.4]} 33. Qa7 {[%clk 0:02:18.7]}
33... Qxb2 {[%clk 0:01:47]} 34. Rab1 {[%clk 0:02:05.9]} 34... Qxb1 {[%clk
0:01:24.9]} 35. Rxb1 {[%clk 0:02:03.7]} 35... Rb8 {[%clk 0:01:20.9]} 36. Qb6+
{[%clk 0:01:54.7]} 1-0

[Event "Live Chess"]
[Site "Chess.com"]
[Date "2023.05.20"]
[Round "-"]
[White "domrobson"]
[Black "therealab0ne"]
[Result "1-0"]
[WhiteElo "1725"]
[BlackElo "677"]
[TimeControl "300"]
[EndTime "9:51:45 PDT"]
[Termination "domrobson won by resignation"]

1. d4 {[%clk 0:04:59.1]} 1... d5 {[%clk 0:04:58.7]} 2. c4 {[%clk 0:04:58.3]}
2... e6 {[%clk 0:04:55.8]} 3. Nf3 {[%clk 0:04:56.2]} 3... Nf6 {[%clk 0:04:54.8]}
4. Nc3 {[%clk 0:04:54.7]} 4... c5 {[%clk 0:04:54]} 5. cxd5 {[%clk 0:04:52.5]}
5... exd5 {[%clk 0:04:52.5]} 6. Bg5 {[%clk 0:04:50.7]} 6... Nc6 {[%clk
0:04:34.9]} 7. e3 {[%clk 0:04:44.8]} 7... Bd6 {[%clk 0:04:23.9]} 8. dxc5 {[%clk
0:04:43.1]} 8... Bxc5 {[%clk 0:04:17.6]} 9. Bb5 {[%clk 0:04:41.2]} 9... O-O
{[%clk 0:04:12.6]} 10. O-O {[%clk 0:04:40.2]} 10... d4 {[%clk 0:03:56]} 11. exd4
{[%clk 0:04:27.6]} 11... Nxd4 {[%clk 0:03:54.9]} 12. Nxd4 {[%clk 0:04:22.3]}
12... Bxd4 {[%clk 0:03:53.6]} 13. Qc2 {[%clk 0:04:14.6]} 13... Re8 {[%clk
0:03:23.5]} 14. Rad1 {[%clk 0:04:03.1]} 14... Re5 {[%clk 0:02:34.7]} 15. Bxf6
{[%clk 0:03:50.6]} 15... Qxf6 {[%clk 0:02:14.6]} 16. Rxd4 {[%clk 0:03:47.5]}
16... h6 {[%clk 0:01:46.6]} 17. Rfd1 {[%clk 0:03:45.1]} 17... Bh3 {[%clk
0:01:40.8]} 18. gxh3 {[%clk 0:03:40.1]} 18... Rg5+ {[%clk 0:01:38]} 19. Rg4
{[%clk 0:03:37]} 19... Rxg4+ {[%clk 0:01:17.4]} 20. hxg4 {[%clk 0:03:35]} 20...
Re8 {[%clk 0:00:42.3]} 21. Bxe8 {[%clk 0:03:30.3]} 1-0